fUSD/lending_fUSD_20260519
["ID","MTS","AMOUNT","RATE_DAILY","PERIOD"]
[422580554,1779123047000,-987.81,0.00028861,2]
[422580573,1779123047000,-183.94,0.0002896,30]
[422580550,1779123047000,-986.46,0.00028859,2]
[422580566,1779123047000,-986.46,0.00028913,7]
[422580570,1779123047000,-987.81,0.00028914,7]
[422580569,1779123047000,-188.56,0.00028914,7]
[422580572,1779123047000,-212.35,0.0002896,30]
[422580571,1779123047000,-181.96,0.00028916,7]
[422580583,1779123047000,-181.96,0.00028968,30]
[422580585,1779123047000,-509.70236039,0.00029,2]
[422580587,1779123047000,-212.35,0.00029014,2]
[422580578,1779123047000,-188.56,0.00028967,30]
[422580577,1779123047000,-986.46,0.00028966,30]
[422580581,1779123047000,-987.81,0.00028967,30]
[422580541,1779123047000,-212.35,0.0002885,2]
[422580564,1779123047000,-183.93,0.00028906,7]
[422580526,1779123047000,-183.93,0.00028797,30]
[422580478,1779123047000,-181.96,0.00028652,30]
[422580518,1779123047000,-173.0,0.00028767,14]
[422580575,1779123047000,-183.93,0.00028961,30]
[422580468,1779123047000,-215.05,0.00028634,30]
[422580480,1779123047000,-212.35,0.00028687,2]
[422580483,1779123047000,-183.94,0.00028687,2]
[422580485,1779123047000,-215.05,0.00028689,2]
[422580476,1779123047000,-987.81,0.00028649,30]
[422580472,1779123047000,-986.46,0.00028646,30]
[422580470,1779123047000,-183.93,0.00028634,30]
[422580474,1779123047000,-188.56,0.00028649,30]
[422580489,1779123047000,-986.46,0.00028699,2]
[422580487,1779123047000,-183.93,0.00028689,2]
[422580491,1779123047000,-188.56,0.00028702,2]
[422580495,1779123047000,-181.96,0.00028705,2]
[422580539,1779123047000,-152.0,0.00028817,5]
[422580493,1779123047000,-987.81,0.00028702,2]
[422580503,1779123047000,-183.93,0.00028743,7]
[422580510,1779123047000,-987.81,0.00028755,7]
[422580501,1779123047000,-215.05,0.00028743,7]
[422580499,1779123047000,-183.94,0.00028741,7]
[422580508,1779123047000,-188.56,0.00028755,7]
[422580506,1779123047000,-986.46,0.00028753,7]
[422580512,1779123047000,-181.96,0.00028757,7]
[422580514,1779123047000,-150.0,0.00028767,2]
[422580516,1779123047000,-277.0,0.00028767,14]
[422580530,1779123047000,-503.0,0.00028806,3]
[422580532,1779123047000,-188.56,0.00028808,30]
[422580534,1779123047000,-987.81,0.00028808,30]
[422580537,1779123047000,-181.96,0.0002881,30]
[422580497,1779123047000,-212.35,0.00028741,7]
[422580574,1779123047000,-215.05,0.00028961,30]
[422580641,1779123047000,-212.35,0.00029178,2]
[422580602,1779123047000,-212.35,0.00029069,7]
[422580656,1779123047000,-1000.0,0.00029209,7]
[422580660,1779123047000,-188.69,0.00029232,7]
[422580658,1779123047000,-150.0,0.00029224,2]
[422580662,1779123047000,-212.46,0.00029232,7]
[422580664,1779123047000,-184.08,0.00029232,7]
[422580666,1779123047000,-986.53,0.00029232,7]
[422580668,1779123047000,-182.09,0.00029232,7]
[422580674,1779123047000,-500.0,0.00029233,30]
[422580670,1779123047000,-215.19,0.00029232,7]
[422580672,1779123047000,-500.0,0.00029233,30]
[422580676,1779123047000,-500.0,0.00029233,30]
[422580678,1779123047000,-196.74470868,0.00029233,30]
[422580680,1779123047000,-1000.89,0.00029253,7]
[422580682,1779123047000,-500.0,0.00029315,60]
[422580684,1779123047000,-1200.0,0.00029315,60]
[422580689,1779123047000,-1000.0,0.00029355,7]
[422580691,1779123047000,-1000.0,0.00029361,7]
[422580687,1779123047000,-200.82710935,0.0002933,2]
[422580693,1779123047000,-503.0,0.00029363,4]
[422580703,1779123047000,-1000.0,0.00029473,7]
[422580705,1779123047000,-586.7,0.00029498,30]
[422580695,1779123047000,-1000.0,0.00029381,7]
[422580699,1779123047000,-900.12,0.000294,7]
[422580709,1779123047000,-1092.05216743,0.00029533,5]
[422580707,1779123047000,-1576.266908,0.000295,2]
[422580697,1779123047000,-6000.0,0.000294,5]
[422580590,1779123047000,-183.94,0.00029014,2]
[422580654,1779123047000,-5950.58,0.000292,14]
[422580647,1779123047000,-183.93,0.00029178,2]
[422580701,1779123047000,-1000.0,0.00029435,7]
[422580643,1779123047000,-183.94,0.00029178,2]
[422580645,1779123047000,-215.05,0.00029178,2]
[422580604,1779123047000,-183.94,0.00029069,7]
[422580596,1779123047000,-986.46,0.00029019,2]
[422580594,1779123047000,-183.93,0.00029015,2]
[422580598,1779123047000,-188.56,0.0002902,2]
[422580606,1779123047000,-215.05,0.00029069,7]
[422580600,1779123047000,-181.96,0.00029021,2]
[422580608,1779123047000,-183.93,0.00029069,7]
[422580612,1779123047000,-188.56,0.00029073,7]
[422580610,1779123047000,-986.46,0.00029072,7]
[422580614,1779123047000,-181.96,0.00029074,7]
[422580616,1779123047000,-212.35,0.00029123,30]
[422580617,1779123047000,-183.94,0.00029123,30]
[422580621,1779123047000,-183.93,0.00029124,30]
[422580592,1779123047000,-215.05,0.00029015,2]
[422580619,1779123047000,-215.05,0.00029124,30]
[422580623,1779123047000,-188.56,0.00029126,30]
[422580652,1779123047000,-181.96,0.0002918,2]
[422580649,1779123047000,-188.56,0.00029179,2]
[422580711,1779123047000,-1097.35196866,0.00029533,5]
[422580637,1779123047000,-203.75847026,0.00029137,20]
[422580639,1779123047000,-346.9996343,0.00029144,7]
[422580651,1779123047000,-986.46,0.00029179,2]
[422580633,1779123047000,-200.0,0.00029137,7]
[422580631,1779123047000,-168.15013474,0.00029131,7]
[422580629,1779123047000,-201.45250632,0.0002913,20]
[422580625,1779123047000,-986.46,0.00029126,30]
[422580627,1779123047000,-181.96,0.00029127,30]
[422580635,1779123047000,-200.0,0.00029137,7]
[422580790,1779123048000,-300.0,0.0003,5]
[422580794,1779123048000,-4000.0,0.0003,30]
[422580788,1779123048000,-598.0,0.0003,3]
[422580786,1779123048000,-200.79,0.0003,11]
[422580780,1779123048000,-332.24708307,0.0003,5]
[422580772,1779123048000,-500.0,0.0003,2]
[422580782,1779123048000,-500.0,0.0003,2]
[422580776,1779123048000,-426198.89516506,0.0003,7]
[422580792,1779123048000,-500.0,0.0003,2]
[422580770,1779123048000,-12817.94838485,0.0003,10]
[422580774,1779123048000,-7577.235988,0.0003,2]
[422580784,1779123048000,-200.0,0.0003,11]
[422580802,1779123048000,-1500.0,0.0003,2]
[422580808,1779123048000,-162.0,0.0003002,30]
[422580800,1779123048000,-200.0,0.0003,2]
[422580798,1779123048000,-650.0,0.0003,2]
[422580806,1779123048000,-162.0,0.0003002,30]
[422580804,1779123048000,-165.0,0.0003002,30]
[422580812,1779123048000,-157.0,0.00030115,30]
[422580810,1779123048000,-1000.0,0.00030045,7]
[422580814,1779123048000,-159.0,0.00030115,30]
[422580818,1779123048000,-155.0,0.00030115,30]
[422580816,1779123048000,-238.0,0.00030115,30]
[422580778,1779123048000,-10482.55124479,0.0003,5]
[422580822,1779123048000,-164.0,0.00030119,30]
[422580796,1779123048000,-164.0,0.0003,14]
[422580768,1779123048000,-198.0,0.00029973,7]
[422580743,1779123048000,-1000.0,0.00029925,7]
[422580764,1779123048000,-151.0,0.00029973,7]
[422580820,1779123048000,-169.0,0.00030119,30]
[422580717,1779123048000,-1000.0,0.00029563,7]
[422580713,1779123048000,-969.67988549,0.00029533,5]
[422580715,1779123048000,-150.0,0.00029534,2]
[422580730,1779123048000,-1000.0,0.00029749,7]
[422580732,1779123048000,-1000.0,0.00029789,7]
[422580734,1779123048000,-173.52799035,0.0002984,18]
[422580721,1779123048000,-1000.0,0.00029588,7]
[422580722,1779123048000,-1000.0,0.00029608,7]
[422580724,1779123048000,-250.9997545,0.00029621,7]
[422580726,1779123048000,-611.66528763,0.00029682,7]
[422580728,1779123048000,-1000.0,0.00029701,7]
[422580737,1779123048000,-482.53776993,0.00029863,7]
[422580739,1779123048000,-7183.91,0.00029872,2]
[422580741,1779123048000,-503.0,0.00029919,5]
[422580745,1779123048000,-1000.0,0.00029945,7]
[422580747,1779123048000,-1000.0,0.00029972,7]
[422580757,1779123048000,-151.0,0.00029973,7]
[422580753,1779123048000,-151.0,0.00029973,7]
[422580751,1779123048000,-151.0,0.00029973,7]
[422580749,1779123048000,-151.0,0.00029973,7]
[422580754,1779123048000,-151.0,0.00029973,7]
[422580759,1779123048000,-151.0,0.00029973,7]
[422580761,1779123048000,-151.0,0.00029973,7]
[422580763,1779123048000,-151.0,0.00029973,7]
[422580766,1779123048000,-151.0,0.00029973,7]
[422580824,1779123048000,-153.0,0.00030119,30]
[422580719,1779123048000,-1000.0,0.00029568,7]
[422580828,1779123048000,-412.0,0.00030119,30]
[422580882,1779123048000,-1500.0,0.00030137,15]
[422580896,1779123048000,-2082.15,0.00030137,2]
[422580900,1779123048000,-2082.14,0.00030137,2]
[422580898,1779123048000,-2082.15,0.00030137,2]
[422580913,1779123048000,-424.0,0.00030178,30]
[422580915,1779123048000,-157.0,0.00030178,30]
[422580917,1779123048000,-2984.819999,0.000302,2]
[422580919,1779123048000,-267.34,0.000302,7]
[422580921,1779123048000,-368.62,0.000302,7]
[422580902,1779123048000,-200.0,0.00030137,2]
[422580924,1779123048000,-281.0,0.00030205,14]
[422580910,1779123048000,-161.0,0.00030178,30]
[422580880,1779123048000,-1500.0,0.00030137,15]
[422580904,1779123048000,-200.0,0.00030137,2]
[422580926,1779123048000,-392.9,0.00030239,2]
[422580930,1779123048000,-200.0,0.00030438,2]
[422580928,1779123048000,-200.0,0.00030438,2]
[422580932,1779123048000,-5037.8235251,0.0003046,2]
[422580941,1779123048000,-336.30026948,0.00030488,7]
[422580934,1779123048000,-503.0,0.00030476,5]
[422580939,1779123048000,-192.67820274,0.00030488,7]
[422580947,1779123048000,-5000.0,0.00030576,2]
[422580943,1779123048000,-693.99926859,0.00030502,7]
[422580937,1779123048000,-162.5161166,0.00030488,7]
[422580945,1779123048000,-5000.0,0.00030576,2]
[422580826,1779123048000,-191.0,0.00030119,30]
[422580908,1779123048000,-158.0,0.00030178,30]
[422580893,1779123048000,-1734.927438,0.00030137,15]
[422580906,1779123048000,-178.47,0.00030138,2]
[422580891,1779123048000,-1500.0,0.00030137,15]
[422580829,1779123048000,-101193.36519336,0.0003013,7]
[422580878,1779123048000,-1500.0,0.00030137,15]
[422580832,1779123048000,-104504.54213284,0.0003013,7]
[422580842,1779123048000,-261.27,0.00030136,8]
[422580840,1779123048000,-151.0,0.00030136,2]
[422580834,1779123048000,-50043.06040198,0.0003013,2]
[422580836,1779123048000,-174337.13940984,0.0003013,7]
[422580844,1779123048000,-261.27,0.00030136,8]
[422580848,1779123048000,-152.23356144,0.00030137,2]
[422580846,1779123048000,-198.24523163,0.00030136,2]
[422580862,1779123048000,-150.0,0.00030137,30]
[422580865,1779123048000,-7662.0,0.00030137,120]
[422580850,1779123048000,-200.0,0.00030137,2]
[422580838,1779123048000,-11379.39958475,0.0003013,7]
[422580867,1779123048000,-178.47,0.00030137,2]
[422580887,1779123048000,-1500.0,0.00030137,15]
[422580869,1779123048000,-178.47,0.00030137,2]
[422580889,1779123048000,-1500.0,0.00030137,15]
[422580876,1779123048000,-1500.0,0.00030137,15]
[422580858,1779123048000,-1200.0,0.00030137,60]
[422580871,1779123048000,-178.46,0.00030137,2]
[422580885,1779123048000,-1500.0,0.00030137,15]
[422580860,1779123048000,-150.0,0.00030137,2]
[422580852,1779123048000,-251.56,0.00030137,2]
[422580856,1779123048000,-500.0,0.00030137,60]
[422580854,1779123048000,-157.5719,0.00030137,2]
[422580873,1779123048000,-1500.0,0.00030137,15]
[422581043,1779123049000,-368.62,0.000312,7]
[422581056,1779123049000,-209.93422819,0.00031393,7]
[422581050,1779123049000,-325.0322332,0.0003139,7]
[422581052,1779123049000,-273.63279438,0.00031393,7]
[422581041,1779123049000,-267.34,0.000312,7]
[422581037,1779123049000,-355.458246,0.000312,7]
[422581039,1779123049000,-361.858181,0.000312,7]
[422581029,1779123049000,-8198.96,0.00031179,7]
[422581035,1779123049000,-330.029288,0.000312,7]
[422581031,1779123049000,-361.796363,0.000312,7]
[422581045,1779123049000,-183.820312,0.000312,7]
[422581033,1779123049000,-398.53339,0.000312,7]
[422581054,1779123049000,-157.02504938,0.00031393,2]
[422581083,1779123049000,-500.0,0.00031781,60]
[422581060,1779123049000,-385.35640548,0.00031393,7]
[422581058,1779123049000,-171.57451771,0.00031393,7]
[422581062,1779123049000,-504.45040423,0.00031393,7]
[422581064,1779123049000,-1040.99890289,0.00031407,7]
[422581069,1779123049000,-1000.0,0.000315,7]
[422581067,1779123049000,-414.74990944,0.00031488,7]
[422581071,1779123049000,-503.0,0.00031589,6]
[422581075,1779123049000,-1364.1,0.00031641,120]
[422581073,1779123049000,-411.46409313,0.00031605,2]
[422581078,1779123049000,-150.0,0.00031703,30]
[422581079,1779123049000,-152.0,0.00031731,6]
[422581024,1779123049000,-424.0,0.00031178,30]
[422581047,1779123049000,-200.0,0.00031361,2]
[422581022,1779123049000,-161.0,0.00031178,30]
[422580966,1779123049000,-922.0,0.00030723,2]
[422581017,1779123049000,-5000.0,0.00031177,2]
[422580964,1779123049000,-2906.6274689,0.00030708,2]
[422581081,1779123049000,-162.9743891,0.00031781,30]
[422580961,1779123049000,-207.37495472,0.00030581,7]
[422580987,1779123049000,-1000.0,0.00031,12]
[422580970,1779123049000,-200.0,0.00030743,2]
[422580972,1779123049000,-200.0,0.00030743,2]
[422580984,1779123049000,-900.12,0.00031,7]
[422580979,1779123049000,-1200.0,0.00030959,60]
[422580986,1779123049000,-1000.0,0.00031,12]
[422580968,1779123049000,-568.366,0.00030723,2]
[422580977,1779123049000,-150.0,0.0003092,30]
[422580981,1779123049000,-349.85672774,0.00031,5]
[422580989,1779123049000,-150.0,0.00031011,2]
[422580990,1779123049000,-503.0,0.00031032,6]
[422580974,1779123049000,-330.0,0.00030808,17]
[422581004,1779123049000,-155.0,0.00031115,30]
[422581002,1779123049000,-238.0,0.00031115,30]
[422581006,1779123049000,-169.0,0.00031119,30]
[422581008,1779123049000,-164.0,0.00031119,30]
[422580993,1779123049000,-200.0,0.0003105,2]
[422580997,1779123049000,-157.0,0.00031115,30]
[422580995,1779123049000,-1000.89,0.00031104,7]
[422581010,1779123049000,-153.0,0.00031119,30]
[422580999,1779123049000,-159.0,0.00031115,30]
[422581015,1779123049000,-412.0,0.00031119,30]
[422581013,1779123049000,-191.0,0.00031119,30]
[422581019,1779123049000,-158.0,0.00031178,30]
[422581026,1779123049000,-157.0,0.00031178,30]
[422581086,1779123049000,-838.6,0.000319,120]
[422581098,1779123049000,-487.5483498,0.00031993,7]
[422581090,1779123049000,-22048.67347041,0.00031926,7]
[422581155,1779123049000,-162.9743891,0.0003211,30]
[422581157,1779123049000,-157.0,0.00032115,30]
[422581153,1779123049000,-155.0,0.000321,2]
[422581169,1779123049000,-153.0,0.00032119,30]
[422581150,1779123049000,-622.12486416,0.00032093,7]
[422581167,1779123049000,-168.36467967,0.00032119,30]
[422581171,1779123049000,-191.0,0.00032119,30]
[422581173,1779123049000,-412.0,0.00032119,30]
[422581186,1779123049000,-157.0,0.00032178,30]
[422581188,1779123049000,-392.9,0.0003221,5]
[422581178,1779123049000,-250.0,0.00032171,7]
[422581182,1779123049000,-161.0,0.00032178,30]
[422581180,1779123049000,-158.0,0.00032178,30]
[422581190,1779123049000,-277.0,0.00032219,14]
[422581175,1779123049000,-503.0,0.00032145,7]
[422581184,1779123049000,-424.0,0.00032178,30]
[422581192,1779123049000,-162.9743891,0.00032274,30]
[422581194,1779123049000,-162.9743891,0.00032411,30]
[422581196,1779123049000,-4300.0,0.00032463,7]
[422581199,1779123049000,-150.0,0.00032485,30]
[422581201,1779123049000,-155.0,0.000325,5]
[422581088,1779123049000,-12546.47480266,0.00031926,7]
[422581205,1779123049000,-1000.0,0.000325,7]
[422581209,1779123049000,-1000.0,0.000325,14]
[422581207,1779123049000,-1000.0,0.000325,14]
[422581210,1779123049000,-936.13,0.00032517,2]
[422581208,1779123049000,-1000.0,0.000325,2]
[422581165,1779123049000,-169.0,0.00032119,30]
[422581161,1779123049000,-238.0,0.00032115,30]
[422581203,1779123049000,-1000.0,0.000325,2]
[422581163,1779123049000,-155.0,0.00032115,30]
[422581159,1779123049000,-159.0,0.00032115,30]
[422581092,1779123049000,-162.9743891,0.00031945,30]
[422581096,1779123049000,-404.08637988,0.00031979,7]
[422581100,1779123049000,-547.26558876,0.00031996,7]
[422581103,1779123049000,-219.57578969,0.00031996,7]
[422581107,1779123049000,-314.05009876,0.00031996,2]
[422581109,1779123049000,-388.6539379,0.00031996,7]
[422581111,1779123049000,-419.86845637,0.00031996,7]
[422581105,1779123049000,-158.25389996,0.00031996,7]
[422581117,1779123049000,-578.03460822,0.00031996,7]
[422581113,1779123049000,-407.91775931,0.00031996,7]
[422581115,1779123049000,-343.14903541,0.00031996,7]
[422581131,1779123049000,-368.62,0.00032,7]
[422581094,1779123049000,-165.0169709,0.00031979,7]
[422581134,1779123049000,-5950.58,0.00032,14]
[422581119,1779123049000,-222.19526241,0.00031996,7]
[422581146,1779123049000,-700.0,0.00032,2]
[422581125,1779123049000,-161.59355544,0.00031999,7]
[422581127,1779123049000,-203.372173,0.00032,5]
[422581142,1779123049000,-189.97120828,0.00032,120]
[422581144,1779123049000,-205.0,0.00032,120]
[422581121,1779123049000,-672.60053897,0.00031996,7]
[422581123,1779123049000,-415.07615203,0.00031999,7]
[422581129,1779123049000,-267.34,0.00032,7]
[422581140,1779123049000,-164.99548644,0.00032,120]
[422581148,1779123049000,-1387.99853718,0.0003201,7]
[422581138,1779123049000,-500.0,0.00032,120]
[422581136,1779123049000,-1000.0,0.00032,12]
[422581256,1779123050000,-531.41956089,0.00032876,2]
[422581254,1779123050000,-624.38473198,0.00032876,2]
[422581265,1779123050000,-160.72096,0.00032877,7]
[422581269,1779123050000,-1603.126522,0.00032877,7]
[422581271,1779123050000,-1603.126522,0.00032877,7]
[422581273,1779123050000,-1603.126522,0.00032877,7]
[422581284,1779123050000,-1603.126522,0.00032877,7]
[422581282,1779123050000,-1603.126522,0.00032877,7]
[422581275,1779123050000,-1603.126522,0.00032877,7]
[422581267,1779123050000,-1603.126522,0.00032877,7]
[422581293,1779123050000,-1603.126522,0.00032877,7]
[422581286,1779123050000,-1603.126522,0.00032877,7]
[422581288,1779123050000,-1603.126522,0.00032877,7]
[422581280,1779123050000,-1603.126522,0.00032877,7]
[422581290,1779123050000,-1603.126522,0.00032877,7]
[422581295,1779123050000,-1603.126522,0.00032877,7]
[422581297,1779123050000,-1603.126522,0.00032877,7]
[422581307,1779123050000,-1603.126529,0.00032877,7]
[422581309,1779123050000,-151.0,0.00032877,7]
[422581311,1779123050000,-151.0,0.00032877,7]
[422581252,1779123050000,-500.0,0.00032876,2]
[422581278,1779123050000,-1603.126522,0.00032877,7]
[422581261,1779123050000,-151.0,0.00032877,7]
[422581227,1779123050000,-503.0,0.00032702,8]
[422581250,1779123050000,-500.0,0.00032876,2]
[422581313,1779123050000,-151.0,0.00032877,7]
[422581213,1779123050000,-150.0,0.00032562,2]
[422581216,1779123050000,-840.75067371,0.00032599,7]
[422581212,1779123050000,-554.45,0.00032517,2]
[422581214,1779123050000,-162.9743891,0.00032575,30]
[422581211,1779123050000,-500.0,0.00032517,2]
[422581220,1779123050000,-1200.0,0.00032603,60]
[422581218,1779123050000,-5950.58,0.000326,14]
[422581222,1779123050000,-1734.99817148,0.00032614,7]
[422581224,1779123050000,-267.34,0.000327,7]
[422581226,1779123050000,-368.62,0.000327,7]
[422581229,1779123050000,-162.9743891,0.0003274,30]
[422581238,1779123050000,-257.60443549,0.00032876,2]
[422581231,1779123050000,-3572.43350408,0.0003287,7]
[422581234,1779123050000,-1000.0,0.00032876,30]
[422581240,1779123050000,-462.94555347,0.00032876,2]
[422581236,1779123050000,-676.05463521,0.00032876,30]
[422581244,1779123050000,-389.4673777,0.00032876,2]
[422581242,1779123050000,-270.02834581,0.00032876,2]
[422581246,1779123050000,-500.0,0.00032876,2]
[422581248,1779123050000,-500.0,0.00032876,2]
[422581262,1779123050000,-151.0,0.00032877,7]
[422581303,1779123050000,-1603.126522,0.00032877,7]
[422581258,1779123050000,-162.9743891,0.00032877,30]
[422581319,1779123050000,-1700.41,0.00032877,30]
[422581366,1779123050000,-1000.0,0.00033,12]
[422581376,1779123050000,-238.0,0.00033115,30]
[422581373,1779123050000,-162.9743891,0.00033041,30]
[422581372,1779123050000,-277.54478456,0.00033016,22]
[422581377,1779123050000,-155.0,0.00033115,30]
[422581380,1779123050000,-191.0,0.00033119,30]
[422581378,1779123050000,-169.0,0.00033119,30]
[422581379,1779123050000,-153.0,0.00033119,30]
[422581381,1779123050000,-412.0,0.00033119,30]
[422581385,1779123050000,-424.0,0.00033178,30]
[422581375,1779123050000,-159.0,0.00033115,30]
[422581382,1779123050000,-158.0,0.00033178,30]
[422581391,1779123050000,-500.0,0.00033425,60]
[422581387,1779123050000,-798.21,0.00033191,2]
[422581386,1779123050000,-157.0,0.00033178,30]
[422581389,1779123050000,-503.0,0.00033258,8]
[422581394,1779123050000,-361.858181,0.000335,18]
[422581390,1779123050000,-150.0,0.00033268,30]
[422581392,1779123050000,-151.0,0.000335,5]
[422581393,1779123050000,-361.858181,0.000335,18]
[422581395,1779123050000,-267.34,0.000335,30]
[422581301,1779123050000,-1603.126522,0.00032877,7]
[422581383,1779123050000,-161.0,0.00033178,30]
[422581374,1779123050000,-157.0,0.00033115,30]
[422581388,1779123050000,-162.9743891,0.00033205,30]
[422581396,1779123050000,-368.62,0.000335,30]
[422581305,1779123050000,-1603.126522,0.00032877,7]
[422581371,1779123050000,-189.97120828,0.00033,120]
[422581299,1779123050000,-1603.126522,0.00032877,7]
[422581315,1779123050000,-151.0,0.00032877,7]
[422581321,1779123050000,-1000.0,0.00032877,30]
[422581317,1779123050000,-151.00001,0.00032877,7]
[422581327,1779123050000,-500.0,0.00032877,120]
[422581325,1779123050000,-500.0,0.00032877,120]
[422581334,1779123050000,-500.0,0.00032877,120]
[422581343,1779123050000,-1675.8,0.000329,120]
[422581339,1779123050000,-500.0,0.00032877,120]
[422581323,1779123050000,-500.0,0.00032877,120]
[422581332,1779123050000,-500.0,0.00032877,120]
[422581370,1779123050000,-164.99548644,0.00033,120]
[422581345,1779123050000,-1000.89,0.00032954,14]
[422581355,1779123050000,-2510.75802215,0.00032978,120]
[422581360,1779123050000,-3947.0,0.00033,6]
[422581357,1779123050000,-1501.75654498,0.00033,5]
[422581352,1779123050000,-351.50612311,0.00032976,2]
[422581349,1779123050000,-703.01224621,0.00032975,2]
[422581363,1779123050000,-151.0,0.00033,7]
[422581329,1779123050000,-500.0,0.00032877,120]
[422581369,1779123050000,-571.83519,0.00033,14]
[422581419,1779123051000,-412.0,0.00034119,30]
[422581423,1779123051000,-157.0,0.00034178,30]
[422581420,1779123051000,-158.0,0.00034178,30]
[422581422,1779123051000,-424.0,0.00034178,30]
[422581424,1779123051000,-392.9,0.00034182,7]
[422581426,1779123051000,-277.0,0.00034233,30]
[422581425,1779123051000,-150.0,0.0003419,2]
[422581431,1779123051000,-500.0,0.00034303,6]
[422581427,1779123051000,-8198.96,0.00034238,14]
[422581430,1779123051000,-368.62,0.000343,30]
[422581421,1779123051000,-161.0,0.00034178,30]
[422581429,1779123051000,-267.34,0.000343,30]
[422581417,1779123051000,-153.0,0.00034119,30]
[422581416,1779123051000,-169.0,0.00034119,30]
[422581401,1779123051000,-373.16625,0.000336,18]
[422581415,1779123051000,-155.0,0.00034115,30]
[422581414,1779123051000,-238.0,0.00034115,30]
[422581409,1779123051000,-300.0,0.00034,120]
[422581411,1779123051000,-319.49540486,0.00034051,30]
[422581413,1779123051000,-159.0,0.00034115,30]
[422581408,1779123051000,-1490.0,0.00034,12]
[422581410,1779123051000,-750.0,0.00034,2]
[422581407,1779123051000,-703.0122462,0.00033981,2]
[422581405,1779123051000,-503.0,0.00033814,9]
[422581403,1779123051000,-2510.75802215,0.00033648,120]
[422581406,1779123051000,-1675.8,0.000339,120]
[422581398,1779123051000,-2081.99780577,0.00033519,7]
[422581397,1779123051000,-355.335714,0.00033508,18]
[422581428,1779123051000,-1200.0,0.00034247,60]
[422581412,1779123051000,-157.0,0.00034115,30]
[422581432,1779123051000,-500.0,0.00034303,6]
[422581418,1779123051000,-191.0,0.00034119,30]
[422581434,1779123051000,-500.0,0.00034303,6]
[422581465,1779123051000,-987.81,0.00029179,2]
[422581464,1779123051000,-987.81,0.00029126,30]
[422581462,1779123051000,-987.81,0.0002902,2]
[422581458,1779123051000,-163.767474,0.00024658,2]
[422581456,1779123051000,-163.767474,0.00024658,2]
[422581459,1779123051000,-163.767474,0.00024658,2]
[422581461,1779123051000,-163.767474,0.00024658,2]
[422581463,1779123051000,-987.81,0.00029073,7]
[422581460,1779123051000,-163.767474,0.00024658,2]
[422581455,1779123051000,-395.0,0.00020742,7]
[422581453,1779123051000,-230.46024168,0.00013698,2]
[422581454,1779123051000,-597.35210343,0.00014901,2]
[422581451,1779123051000,-1273.55046578,0.000346,2]
[422581452,1779123051000,-2588.49438637,0.000346,2]
[422581446,1779123051000,-469.01,0.00034544,60]
[422581457,1779123051000,-163.767474,0.00024658,2]
[422581449,1779123051000,-3249.86,0.000346,2]
[422581450,1779123051000,-3168.36849327,0.000346,2]
[422581436,1779123051000,-503.0,0.00034371,9]
[422581441,1779123051000,-500.0,0.00034452,2]
[422581438,1779123051000,-500.0,0.00034452,2]
[422581435,1779123051000,-2510.75802215,0.00034318,120]